fUST/lending_fUST_20250914
["ID","MTS","AMOUNT","RATE_DAILY","PERIOD"]
[385440487,1757850648970,-480.0,0.00022172,3]
[385440488,1757850648980,-480.0,0.00022172,3]
[385440489,1757850648989,-480.0,0.00022172,3]
[385440490,1757850648999,-480.0,0.00022172,3]
[385440491,1757850649008,-969.55,0.00022172,3]
[385440492,1757850649017,-480.0,0.00022172,3]
[385440493,1757850649026,-480.0,0.00022172,3]
[385440494,1757850649035,-480.0,0.00022172,3]
[385440495,1757850649045,-621.16213892,0.00022172,3]
[385440496,1757850649054,-480.0,0.00022172,3]
[385440497,1757850649064,-480.0,0.00022172,3]
[385440498,1757850649073,-480.0,0.00022172,3]
[385440499,1757850649083,-480.0,0.00022172,3]
[385440500,1757850649092,-480.0,0.00022172,3]
[385440501,1757850649101,-480.0,0.00022172,3]
[385440502,1757850649111,-480.0,0.00022172,3]
[385440503,1757850649120,-480.0,0.00022172,3]
[385440504,1757850649130,-480.0,0.00022172,3]
[385440505,1757850649140,-480.0,0.00022172,3]
[385440506,1757850649150,-480.0,0.00022172,3]
[385440507,1757850649159,-488.80103727,0.00022172,3]
[385440508,1757850649169,-480.0,0.00022172,3]
[385440509,1757850649178,-481.68188389,0.00022172,3]
[385440510,1757850649188,-480.0,0.00022172,3]
[385440511,1757850649198,-482.58620162,0.00022172,3]
[385440512,1757850649208,-524.74,0.00022172,3]
[385440513,1757850649217,-480.0,0.00022172,3]
[385440514,1757850649227,-746.67,0.00022172,3]
[385440515,1757850649236,-480.0,0.00022172,3]
[385440516,1757850649246,-500.0,0.00022172,3]
[385440517,1757850649256,-480.0,0.00022172,3]
[385440518,1757850649266,-480.0,0.00022172,3]
[385440519,1757850649275,-176.3067571,0.00022172,3]
[385440520,1757850649285,-480.0,0.00022172,3]
[385440521,1757850649295,-385.36645239,0.00022172,3]
[385440522,1757850649304,-2301.97,0.00022172,3]
[385440523,1757850649313,-480.0,0.00022172,3]
[385440524,1757850649323,-480.0,0.00022172,3]
[385440525,1757850649333,-497.22,0.00022172,3]
[385440526,1757850649343,-480.0,0.00022172,3]
[385440527,1757850649353,-491.85251577,0.00022172,3]
[385440528,1757850649363,-485.22244816,0.00022172,3]
[385440529,1757850649372,-480.0,0.00022172,3]
[385440530,1757850649382,-480.0,0.00022172,3]
[385440531,1757850649391,-529.25235228,0.00022172,3]
[385440532,1757850649402,-775.87,0.00022172,3]
[385440533,1757850649412,-480.0,0.00022172,3]
[385440534,1757850649421,-480.0,0.00022172,3]
[385440535,1757850649430,-480.0,0.00022172,3]
[385440536,1757850649440,-480.0,0.00022172,3]
[385440537,1757850649449,-155.24016196,0.00022172,3]
[385440538,1757850649458,-480.0,0.00022172,3]
[385440539,1757850649468,-480.0,0.00022172,3]
[385440540,1757850649478,-480.0,0.00022172,3]
[385440541,1757850649487,-622.47,0.00022172,3]
[385440542,1757850649497,-480.0,0.00022172,3]
[385440543,1757850649506,-480.0,0.00022172,3]
[385440544,1757850649516,-480.0,0.00022172,3]
[385440545,1757850649525,-480.0,0.00022172,3]
[385440546,1757850649534,-480.0,0.00022172,3]
[385440547,1757850649544,-480.0,0.00022172,3]
[385440548,1757850649553,-480.0,0.00022172,3]
[385440549,1757850649562,-480.0,0.00022172,3]
[385440550,1757850649572,-480.0,0.00022172,3]
[385440551,1757850649583,-480.0,0.00022172,3]
[385440552,1757850649592,-480.0,0.00022172,3]
[385440553,1757850649601,-480.0,0.00022172,3]
[385440554,1757850649611,-480.0,0.00022172,3]
[385440555,1757850649620,-480.0,0.00022172,3]
[385440556,1757850649629,-480.0,0.00022172,3]
[385440557,1757850649639,-165.86374535,0.00022172,3]
[385440558,1757850650006,-480.0,0.00021917,2]
[385440559,1757850650016,-314.13625465,0.00022172,3]
[385440560,1757850650026,-480.0,0.00022172,3]
[385440561,1757850650036,-480.0,0.00022172,3]
[385440562,1757850650046,-480.0,0.00022172,3]
[385440563,1757850650055,-484.57945552,0.00022172,3]
[385440564,1757850650065,-480.0,0.00022172,3]
[385440565,1757850650074,-480.0,0.00022172,3]
[385440566,1757850650083,-480.0,0.00022172,3]
[385440567,1757850650092,-480.0,0.00022172,3]
[385440568,1757850650102,-480.0,0.00022172,3]
[385440569,1757850650112,-629.78,0.00022172,3]
[385440570,1757850650121,-480.0,0.00022172,3]
[385440571,1757850650130,-480.0,0.00022172,3]
[385440572,1757850650139,-482.79201266,0.00022172,3]
[385440573,1757850650149,-480.0,0.00022172,3]
[385440574,1757850650159,-480.0,0.00022172,3]
[385440575,1757850650168,-515.68,0.00022172,3]
[385440576,1757850650178,-552.57,0.00022172,3]
[385440577,1757850650187,-544.3,0.00022172,3]
[385440578,1757850650197,-480.0,0.00022172,3]
[385440579,1757850650206,-1183.86,0.00022172,3]
[385440580,1757850650215,-480.0,0.00022172,3]
[385440581,1757850650224,-480.0,0.00022172,3]
[385440582,1757850650234,-480.0,0.00022172,3]
[385440583,1757850650243,-1325.03,0.00022172,3]
[385440584,1757850650253,-377.26850653,0.00022172,3]
[385440585,1757850650263,-480.0,0.00022172,3]
[385440586,1757850650272,-480.0,0.00022172,3]
[385440587,1757850650282,-480.0,0.00022172,3]
[385440588,1757850650292,-480.0,0.00022172,3]
[385440589,1757850650301,-480.0,0.00022172,3]
[385440590,1757850650311,-480.0,0.00022172,3]
[385440591,1757850650320,-480.0,0.00022172,3]
[385440592,1757850650330,-217.13689039,0.00022172,3]
[385440593,1757850650339,-480.0,0.00022172,3]
[385440594,1757850650349,-480.0,0.00022172,3]
[385440595,1757850650359,-246.50945821,0.00022172,3]
[385440596,1757850650369,-480.0,0.00022172,3]
[385440597,1757850650378,-503.47,0.00022172,3]
[385440598,1757850650388,-480.0,0.00022172,3]
[385440599,1757850650398,-480.0,0.00022172,3]
[385440600,1757850650409,-480.0,0.00022172,3]
[385440601,1757850650419,-480.0,0.00022172,3]
[385440602,1757850650428,-480.0,0.00022172,3]
[385440603,1757850650437,-480.0,0.00022172,3]
[385440604,1757850650447,-358.28956709,0.00022172,3]
[385440605,1757850650456,-480.0,0.00022172,3]
[385440606,1757850650466,-480.0,0.00022172,3]
[385440607,1757850650476,-417.15472785,0.00022172,3]
[385440608,1757850650486,-500.0,0.00022173,2]
[385440609,1757850650494,-500.0,0.00022173,2]
[385440610,1757850650504,-500.0,0.00022173,2]
[385440611,1757850650514,-500.41899653,0.00022173,2]
[385440612,1757850650524,-500.0,0.00022173,2]
[385440613,1757850650533,-500.0,0.00022173,2]
[385440614,1757850650543,-500.0,0.00022173,2]
[385440615,1757850650552,-500.0,0.00022173,2]
[385440616,1757850650562,-500.0,0.00022173,2]
[385440617,1757850650571,-158.38050054,0.00022173,2]
[385440618,1757850650581,-500.0,0.00022173,2]
[385440619,1757850650591,-488.64353003,0.00022173,2]
[385440620,1757850650617,-11.35646997,0.00022173,2]
[385440621,1757850650626,-500.0,0.00022173,2]
[385440622,1757850650636,-500.0,0.00022173,2]
[385440623,1757850650645,-500.0,0.00022173,2]
[385440624,1757850650655,-500.0,0.00022173,2]
[385440625,1757850650665,-500.0,0.00022173,2]
[385440626,1757850650675,-500.0,0.00022173,2]
[385440627,1757850650684,-500.0,0.00022173,2]
[385440628,1757850650694,-500.0,0.00022173,2]
[385440629,1757850650703,-156.30393271,0.00022173,2]
[385440630,1757850650712,-236.70235293,0.00022173,2]
[385440631,1757850650722,-500.0,0.00022173,2]
[385440632,1757850650731,-500.0,0.00022173,2]
[385440633,1757850650741,-500.0,0.00022173,2]
[385440634,1757850650750,-500.0,0.00022173,2]
[385440635,1757850650760,-500.0,0.00022173,2]
[385440636,1757850650770,-500.0,0.00022173,2]
[385440637,1757850650780,-500.0,0.00022173,2]
[385440638,1757850650790,-500.0,0.00022173,2]
[385440639,1757850650799,-500.0,0.00022173,2]
[385440640,1757850650808,-367.63724429,0.00022173,2]
[385440641,1757850650821,-132.36275571,0.00022173,2]
[385440642,1757850650831,-500.0,0.00022173,2]
[385440643,1757850650840,-282.14405601,0.00022173,2]
[385440644,1757850650851,-217.85594399,0.00022173,2]
[385440645,1757850650861,-500.0,0.00022173,2]
[385440646,1757850650871,-167.06102457,0.00022173,2]
[385440647,1757850650881,-500.0,0.00022173,2]
[385440648,1757850650891,-158.15991104,0.00022173,2]
[385440649,1757850650900,-500.0,0.00022173,2]
[385440650,1757850650909,-500.0,0.00022173,2]
[385440651,1757850650920,-500.0,0.00022173,2]
[385440652,1757850650929,-428.6533033,0.00022173,2]
[385440653,1757850650939,-501.00410317,0.00022173,2]
[385440654,1757850650949,-500.0,0.00022173,2]
[385440655,1757850650962,-500.0,0.00022173,2]
[385440656,1757850650973,-500.0,0.00022173,2]
[385440657,1757850650982,-500.0,0.00022173,2]
[385440658,1757850650991,-500.0,0.00022173,2]
[385440659,1757850651001,-500.0,0.00022173,2]
[385440660,1757850651010,-568.02688841,0.00022173,2]
[385440661,1757850651019,-500.0,0.00022173,2]
[385440662,1757850651028,-500.0,0.00022173,2]
[385440663,1757850651038,-500.0,0.00022173,2]
[385440664,1757850651047,-500.0,0.00022173,2]
[385440665,1757850651056,-500.0,0.00022173,2]
[385440666,1757850651066,-500.0,0.00022173,2]
[385440667,1757850651075,-500.0,0.00022173,2]
[385440668,1757850651085,-500.0,0.00022173,2]
[385440669,1757850651094,-430.19778991,0.0002219,3]
[385440670,1757850651103,-500.0,0.0002219,3]
[385440671,1757850651113,-500.0,0.0002219,3]
[385440672,1757850651123,-500.0,0.0002219,3]
[385440673,1757850651132,-500.0,0.0002219,3]
[385440674,1757850651142,-500.0,0.0002219,3]
[385440675,1757850651151,-500.0,0.00022191,2]
[385440676,1757850651161,-480.0,0.00022191,3]
[385440677,1757850651171,-480.0,0.00022191,3]
[385440678,1757850651180,-480.0,0.00022191,3]
[385440679,1757850651189,-480.0,0.00022191,3]
[385440680,1757850651199,-400.0,0.00022191,3]
[385440681,1757850651208,-480.0,0.00022191,3]
[385440682,1757850651218,-481.56346662,0.00022191,3]
[385440683,1757850651228,-1139.87,0.00022191,3]
[385440684,1757850651237,-480.0,0.00022191,3]
[385440685,1757850651246,-1187.29,0.00022191,3]
[385440686,1757850651256,-910.96,0.00022191,3]
[385440687,1757850651267,-480.0,0.00022191,3]
[385440688,1757850651276,-480.0,0.00022191,3]
[385440689,1757850651286,-480.0,0.00022191,3]
[385440690,1757850651306,-480.0,0.00022191,3]
[385440691,1757850651316,-480.0,0.00022191,3]
[385440692,1757850651326,-582.12,0.00022191,3]
[385440693,1757850651337,-480.0,0.00022191,3]
[385440694,1757850651348,-1072.23,0.00022191,3]
[385440695,1757850651357,-480.0,0.00022191,3]
[385440696,1757850651368,-680.66,0.00022191,3]
[385440697,1757850651378,-1021.14,0.00022191,3]
[385440698,1757850651388,-480.0,0.00022191,3]
[385440699,1757850651399,-480.0,0.00022191,3]
[385440700,1757850651410,-1404.19,0.00022191,3]
[385440701,1757850651420,-480.0,0.00022191,3]
[385440702,1757850651430,-1002.28,0.00022191,3]
[385440703,1757850651440,-480.0,0.00022191,3]
[385440704,1757850651450,-426.92799805,0.00022191,3]
[385440705,1757850651459,-480.0,0.00022191,3]
[385440706,1757850651470,-590.99,0.00022191,3]
[385440707,1757850651480,-480.0,0.00022191,3]
[385440708,1757850651490,-614.01281948,0.00022191,3]
[385440709,1757850651499,-547.93,0.00022191,3]
[385440710,1757850651509,-484.27593631,0.00022191,3]
[385440711,1757850651519,-1204.87,0.00022191,3]
[385440712,1757850651529,-480.0,0.00022191,3]
[385440713,1757850651539,-480.0,0.00022191,3]
[385440714,1757850651549,-480.0,0.00022191,3]
[385440715,1757850651559,-474.87444054,0.00022191,3]
[385440716,1757850651570,-817.16,0.00022191,3]
[385440717,1757850651579,-480.0,0.00022191,3]
[385440718,1757850651589,-890.29,0.00022191,3]
[385440719,1757850651599,-840.21,0.00022191,3]
[385440720,1757850651609,-658.77,0.00022191,3]
[385440721,1757850651619,-571.14,0.00022191,3]
[385440722,1757850651629,-722.3,0.00022191,3]
[385440723,1757850651639,-513.68448624,0.00022191,3]
[385440724,1757850651650,-579.5035496,0.00022191,3]
[385440725,1757850651661,-499.70199075,0.00022191,3]
[385440726,1757850651671,-480.0,0.00022191,3]
[385440727,1757850651681,-480.0,0.00022191,3]
[385440728,1757850651691,-480.0,0.00022191,3]
[385440729,1757850651700,-480.0,0.00022191,3]
[385440730,1757850651710,-480.0,0.00022191,3]
[385440731,1757850651719,-480.0,0.00022191,3]
[385440732,1757850651729,-649.9,0.00022191,3]
[385440733,1757850651738,-921.7,0.00022191,3]
[385440734,1757850651748,-480.0,0.00022191,3]
[385440735,1757850651757,-480.0,0.00022191,3]
[385440736,1757850651767,-1123.01,0.00022191,3]
[385440737,1757850651776,-480.0,0.00022191,3]
[385440738,1757850651785,-322.69797337,0.00022191,3]
[385440739,1757850651795,-905.25,0.00022191,3]
[385440740,1757850651804,-473.67311968,0.00022191,3]
[385440741,1757850651814,-938.29,0.00022191,3]
[385440742,1757850651824,-480.0,0.00022191,3]
[385440743,1757850651833,-1063.14,0.00022191,3]
[385440744,1757850651842,-391.42073882,0.00022191,3]
[385440745,1757850651852,-480.0,0.00022191,3]
[385440746,1757850651861,-513.65966398,0.00022191,3]
[385440747,1757850651870,-527.55,0.00022191,3]
[385440748,1757850651880,-1007.45,0.00022191,3]
[385440749,1757850651889,-480.0,0.00022191,3]
[385440750,1757850651899,-492.48006568,0.00022191,3]
[385440751,1757850651908,-480.0,0.00022191,3]
[385440752,1757850651918,-480.0,0.00022191,3]
[385440753,1757850651928,-5800.17,0.00022191,3]
[385440754,1757850651938,-480.0,0.00022191,3]
[385440755,1757850651947,-1459.03,0.00022191,3]
[385440756,1757850651957,-480.0,0.00022191,3]
[385440757,1757850651972,-2808.41,0.00022191,3]
[385440758,1757850651982,-576.55,0.00022191,3]
[385440759,1757850651992,-480.0,0.00022191,3]
[385440760,1757850652002,-4103.5,0.00022191,3]
[385440761,1757850652012,-480.0,0.00022191,3]
[385440762,1757850652021,-480.0,0.00022191,3]
[385440763,1757850652030,-480.0,0.00022191,3]
[385440764,1757850652040,-480.0,0.00022191,3]
[385440765,1757850652050,-489.03312063,0.00022191,3]
[385440766,1757850652059,-794.44,0.00022191,3]
[385440767,1757850652068,-480.0,0.00022191,3]
[385440768,1757850652077,-572.88,0.00022191,3]
[385440769,1757850652086,-480.0,0.00022191,3]
[385440770,1757850652096,-1176.09,0.00022191,3]
[385440771,1757850652106,-480.0,0.00022191,3]
[385440772,1757850652115,-1444.07,0.00022191,3]
[385440773,1757850652125,-783.85,0.00022191,3]
[385440774,1757850652134,-647.7,0.00022191,3]
[385440775,1757850652143,-482.57595851,0.00022191,3]
[385440776,1757850652153,-615.97067192,0.00022191,3]
[385440777,1757850652162,-867.92,0.00022191,3]
[385440778,1757850652172,-524.15,0.00022191,3]
[385440779,1757850652182,-389.41,0.00022191,2]
[385440780,1757850652191,-482.13757358,0.00022191,3]
[385440781,1757850652201,-2303.29,0.00022191,3]
[385440782,1757850652211,-7254.42,0.00022191,3]
[385440783,1757850652220,-480.0,0.00022191,3]
[385440784,1757850652230,-1259.6,0.00022191,3]
[385440785,1757850652303,-482.59727693,0.00022191,3]
[385440786,1757850652312,-650.91,0.00022191,3]
[385440787,1757850652321,-480.0,0.00022191,3]
[385440788,1757850652330,-480.0,0.00022191,3]
[385440789,1757850652339,-794.97,0.00022191,3]
[385440790,1757850652348,-2344.27,0.00022191,3]
[385440791,1757850652357,-26637.54,0.00022191,3]
[385440792,1757850652366,-480.0,0.00022191,3]
[385440793,1757850652376,-480.0,0.00022191,3]
[385440794,1757850652385,-849.46,0.00022191,3]
[385440795,1757850652394,-661.13,0.00022191,3]
[385440796,1757850652403,-480.0,0.00022191,3]
[385440797,1757850652412,-560.67,0.00022191,3]
[385440798,1757850652421,-151.0,0.00022191,7]
[385440799,1757850652430,-158.30519,0.00022191,7]
[385440800,1757850652439,-1494.83,0.00022191,3]
[385440801,1757850652449,-642.35,0.00022191,3]
[385440802,1757850652459,-480.0,0.00022191,3]
[385440803,1757850652468,-1667.85,0.00022191,3]
[385440804,1757850652477,-480.0,0.00022191,3]
[385440805,1757850652486,-480.0,0.00022191,3]
[385440806,1757850652495,-510.38121591,0.00022191,3]
[385440807,1757850652504,-177.143457,0.00022191,7]
[385440808,1757850652513,-1051.33,0.00022191,3]
[385440809,1757850652522,-480.0,0.00022191,3]
[385440810,1757850652531,-932.53,0.00022191,3]
[385440811,1757850652540,-1124.13,0.00022191,3]
[385440812,1757850652549,-177.143457,0.00022191,7]
[385440813,1757850652558,-177.143457,0.00022191,7]
[385440814,1757850652567,-177.143457,0.00022191,7]
[385440815,1757850652576,-480.0,0.00022191,3]
[385440816,1757850652585,-1554.03,0.00022191,3]
[385440817,1757850652595,-480.0,0.00022191,3]
[385440818,1757850652604,-1576.57,0.00022191,3]
[385440819,1757850652613,-480.0,0.00022191,3]
[385440820,1757850652622,-151.0,0.00022191,7]
[385440821,1757850652631,-1154.89,0.00022191,3]
[385440822,1757850652641,-818.01,0.00022191,3]
[385440823,1757850652650,-2957.23,0.00022191,3]
[385440824,1757850652660,-480.0,0.00022191,3]
[385440825,1757850652668,-480.0,0.00022191,3]
[385440826,1757850652677,-1595.27,0.00022191,3]
[385440827,1757850652687,-480.0,0.00022191,3]
[385440828,1757850652695,-480.0,0.00022191,3]
[385440829,1757850652704,-3382.66,0.00022191,3]
[385440830,1757850652714,-231.93618648,0.00022191,3]
[385440831,1757850652723,-4258.82,0.00022191,3]
[385440832,1757850652732,-480.0,0.00022191,3]
[385440833,1757850652741,-480.0,0.00022191,3]
[385440834,1757850652750,-2411.69,0.00022191,3]
[385440835,1757850652759,-480.0,0.00022191,3]
[385440836,1757850652769,-840.39,0.00022191,3]
[385440837,1757850652777,-480.0,0.00022191,3]
[385440838,1757850652786,-480.0,0.00022191,3]
[385440839,1757850652795,-198.52131176,0.00022191,3]
[385440840,1757850652804,-480.0,0.00022191,3]
[385440841,1757850652813,-522.93993346,0.00022191,3]
[385440842,1757850652822,-480.0,0.00022191,3]
[385440843,1757850652831,-480.0,0.00022191,3]
[385440844,1757850652840,-480.0,0.00022191,3]
[385440845,1757850652849,-500.0,0.00022191,3]
[385440846,1757850652859,-480.0,0.00022191,3]
[385440847,1757850652868,-7230.36,0.00022191,3]
[385440848,1757850652877,-716.09,0.00022191,3]
[385440849,1757850652885,-480.0,0.00022191,3]
[385440850,1757850652895,-677.71,0.00022191,3]
[385440851,1757850652905,-3075.01,0.00022191,3]
[385440852,1757850652915,-480.0,0.00022191,3]
[385440853,1757850652925,-480.0,0.00022191,3]
[385440854,1757850652934,-961.64,0.00022191,3]
[385440855,1757850652943,-480.0,0.00022191,3]
[385440856,1757850652952,-480.0,0.00022191,3]
[385440857,1757850652965,-480.0,0.00022191,3]
[385440858,1757850652975,-480.0,0.00022191,3]
[385440859,1757850652984,-266.33135434,0.00022191,3]
[385440860,1757850652993,-480.0,0.00022191,3]
[385440861,1757850653001,-480.0,0.00022191,3]
[385440862,1757850653012,-4613.52,0.00022191,3]
[385440863,1757850653021,-480.0,0.00022191,3]
[385440864,1757850653030,-480.0,0.00022191,3]
[385440865,1757850653040,-724.43,0.00022191,3]
[385440866,1757850653050,-1100.56,0.00022191,3]
[385440867,1757850653060,-973.39,0.00022191,3]
[385440868,1757850653069,-480.0,0.00022191,3]
[385440869,1757850653079,-1655.44,0.00022191,3]
[385440870,1757850653089,-749.04,0.00022191,3]
[385440871,1757850653099,-2054.15,0.00022191,3]
[385440872,1757850653108,-151.0,0.00022191,7]
[385440873,1757850653117,-151.0,0.00022191,7]
[385440874,1757850653127,-1273.75,0.00022191,3]
[385440875,1757850653136,-151.0,0.00022191,7]
[385440876,1757850653145,-480.0,0.00022191,3]
[385440877,1757850653154,-590.4,0.00022191,3]
[385440878,1757850653164,-1130.32,0.00022191,3]
[385440879,1757850653179,-151.0,0.00022191,7]
[385440880,1757850653203,-328.78798777,0.00022191,3]
[385440881,1757850653229,-936.1,0.00022191,3]
[385440882,1757850653247,-480.0,0.00022191,3]
[385440883,1757850653256,-480.0,0.00022191,2]
[385440884,1757850653266,-480.0,0.00022191,3]
[385440885,1757850653274,-3389.17,0.00022191,3]
[385440886,1757850653284,-15573.91,0.00022191,3]
[385440887,1757850653293,-480.0,0.00022191,3]
[385440888,1757850653305,-480.0,0.00022191,3]
[385440889,1757850653314,-480.0,0.00022191,3]
[385440890,1757850653324,-1564.67,0.00022191,3]
[385440891,1757850653333,-480.0,0.00022191,3]
[385440892,1757850653343,-2581.77,0.00022191,3]
[385440893,1757850653352,-806.04,0.00022191,3]
[385440894,1757850653362,-480.0,0.00022191,3]
[385440895,1757850653371,-480.0,0.00022191,3]
[385440896,1757850653380,-156.804569,0.00022191,7]
[385440897,1757850653390,-480.93989399,0.00022191,3]
[385440898,1757850653399,-480.0,0.00022191,3]
[385440899,1757850653409,-4146.65,0.00022191,3]
[385440900,1757850653419,-480.0,0.00022191,3]
[385440901,1757850653428,-1221.51,0.00022191,3]
[385440902,1757850653438,-480.0,0.00022191,3]
[385440903,1757850653448,-1091.02,0.00022191,3]
[385440904,1757850653457,-2313.57,0.00022191,3]
[385440905,1757850653466,-480.0,0.00022191,3]
[385440906,1757850653475,-438.68970999,0.00022191,3]
[385440907,1757850653486,-151.0,0.00022191,7]
[385440908,1757850653495,-160.0,0.00022289,4]
[385440909,1757850653505,-300.0,0.00022353,20]
[385440910,1757850653514,-300.0,0.00022353,20]
[385440911,1757850653524,-300.0,0.00022353,20]
[385440912,1757850653533,-300.0,0.00022353,20]
[385440913,1757850653544,-300.0,0.00022353,20]
[385440914,1757850653554,-300.0,0.00022353,20]
[385440915,1757850653564,-300.0,0.00022353,20]
[385440916,1757850653574,-300.0,0.00022353,20]
[385440917,1757850653584,-300.0,0.00022353,20]
[385440918,1757850653593,-300.0,0.00022353,20]
[385440919,1757850653602,-300.0,0.00022353,20]
[385440920,1757850653612,-300.0,0.00022353,20]
[385440921,1757850653621,-300.0,0.00022353,20]
[385440922,1757850653631,-300.0,0.00022353,20]
[385440923,1757850653640,-300.0,0.00022353,20]
[385440924,1757850653651,-151.0,0.00022353,7]
[385440925,1757850653661,-151.0,0.00022353,7]
[385440926,1757850653671,-151.0,0.00022353,7]
[385440927,1757850653680,-152.998992,0.00022353,7]
[385440928,1757850653689,-600.0,0.00022354,20]
[385440929,1757850653699,-176.24354705,0.00022365,2]
[385440930,1757850653708,-2437.52750796,0.00022398,2]
[385440931,1757850653718,-480.0,0.00022446,3]
[385440932,1757850653727,-484.16146087,0.00022446,3]
[385440933,1757850653736,-480.0,0.00022446,3]
[385440934,1757850653746,-480.0,0.00022446,3]
[385440935,1757850653755,-480.0,0.00022446,3]
[385440936,1757850653765,-543.55,0.00022446,3]
[385440937,1757850653774,-480.0,0.00022446,3]
[385440938,1757850653784,-480.0,0.00022446,3]
[385440939,1757850653793,-802.85,0.00022446,3]
[385440940,1757850653804,-480.0,0.00022446,3]
[385440941,1757850653814,-480.0,0.00022446,3]
[385440942,1757850653826,-481.49281961,0.00022446,2]
[385440943,1757850653835,-480.0,0.00022446,3]
[385440944,1757850653845,-490.06193851,0.00022446,3]
[385440945,1757850653855,-480.0,0.00022446,3]
[385440946,1757850653864,-480.0,0.00022446,3]
[385440947,1757850653873,-480.0,0.00022446,3]
[385440948,1757850653883,-464.93071131,0.00022446,3]
[385440949,1757850653892,-480.0,0.00022446,3]
[385440950,1757850653902,-480.0,0.00022446,3]
[385440951,1757850653911,-484.16554956,0.00022446,3]
[385440952,1757850653921,-480.0,0.00022446,3]
[385440953,1757850653930,-480.0,0.00022446,3]
[385440954,1757850653939,-480.0,0.00022446,3]
[385440955,1757850653948,-480.0,0.00022446,3]
[385440956,1757850653962,-480.0,0.00022446,3]
[385440957,1757850653971,-480.0,0.00022446,3]
[385440958,1757850653981,-483.06394982,0.00022446,3]
[385440959,1757850653990,-598.16936873,0.00022446,3]
[385440960,1757850654002,-480.0,0.00022446,3]
[385440961,1757850654011,-480.0,0.00022446,3]
[385440962,1757850654020,-482.49549714,0.00022446,3]
[385440963,1757850654030,-480.0,0.00022446,3]
[385440964,1757850654040,-480.0,0.00022446,3]
[385440965,1757850654052,-480.0,0.00022446,3]
[385440966,1757850654061,-1008.73,0.00022446,3]
[385440967,1757850654070,-482.58015421,0.00022446,3]
[385440968,1757850654080,-484.92886699,0.00022446,3]
[385440969,1757850654090,-480.0,0.00022446,3]
[385440970,1757850654100,-481.80980419,0.00022446,3]
[385440971,1757850654110,-480.0,0.00022446,3]
[385440972,1757850654119,-480.0,0.00022446,3]
[385440973,1757850654129,-346.66522131,0.00022446,3]
[385440975,1757850654139,-977.25,0.00022446,3]
[385440976,1757850654149,-480.0,0.00022446,3]
[385440977,1757850654159,-480.0,0.00022446,3]
[385440978,1757850654169,-480.0,0.00022446,3]
[385440979,1757850654179,-480.0,0.00022446,3]
[385440980,1757850654188,-480.0,0.00022446,3]
[385440981,1757850654198,-480.0,0.00022446,3]
[385440982,1757850654207,-480.0,0.00022446,3]
[385440983,1757850654217,-453.91528071,0.00022446,3]
[385440984,1757850654226,-480.0,0.00022446,3]
[385440985,1757850654235,-480.0,0.00022446,3]
[385440986,1757850654245,-480.0,0.00022446,3]
[385440987,1757850654254,-480.0,0.00022446,3]